Cogmind - Beta 14 @@@ ROGUE MODE // 2024.11.03 @ 00:41:00 Player: Kole Result: Destroyed by Y-54 Guardian with Flak Gun Performance ------------- Evolutions (3) 1500 Regions Visited (7) 1400 Robots Destroyed (64) 320 Value Destroyed (1994) 1994 Prototype IDs (31) 620 Alien Tech Used (0) 0 Bonus (372) 372 TOTAL SCORE: 6206 Bonus ------- High Alert Combat Kills 101 Follower Combat Kills 46 Aligned with FarCom 300 Friendly Fire -75 Cogmind --------- Core Integrity 0/700 Matter 166/300 Energy 250/250 System Corruption 11% Temperature Cool (0) Movement Walking (120) Location -7/Storage Parts ------- > --- POWER (1) -------- Ion Engine > --- PROPULSION (4) --- Aluminum Leg Aluminum Leg Aluminum Leg > --- UTILITY (6) ------ Small Storage Unit Machine Analyzer Improved Targeting Computer Core Analyzer Core Analyzer Tractor Beam > --- WEAPON (2) ------- Rocket Array Rocket Array > --- INVENTORY (8) ---- Advanced ECM Suite Backup Laser I Heavy Particle Cannon Plasma Cannon Plasma Cannon Rocket Array Katana Peak State ------------ > --- POWER ------------ Light Nuclear Core > --- PROPULSION ------- Improved Aluminum Leg Carbon-fiber Leg Gravmag System Improved VTOL Module > --- UTILITY ---------- Cryofiber Web Medium Storage Unit Improved Targeting Computer Improved Targeting Computer Launcher Guidance Computer Weapon Cycler > --- WEAPON ----------- Heavy Assault Cannon > --- INVENTORY -------- Light Nuclear Core Huge Storage Unit Improved Targeting Computer Core Analyzer Core Analyzer Advanced ECM Suite Improved Utility Shielding Heavy Particle Gun Gauss Rifle Missile Launcher [Rating: 41] Favorites ----------- Power Light Deuterium Engine Engine Light Deuterium Engine Power Core Light Nuclear Core Propulsion Aluminum Leg Treads Light Treads Leg Aluminum Leg Hover Unit Gravmag System Flight Unit Improved VTOL Module Utility Improved Targeting Computer Device Cryofiber Web Storage Small Storage Unit Processor Improved Targeting Computer Protection Improved Light Armor Plating Weapon Improved Assault Rifle Energy Gun Heavy Particle Gun Ballistic Gun Improved Assault Rifle Ballistic Cannon Heavy Assault Cannon Launcher Missile Launcher Special Weapon Remote Datajack Slashing Weapon Katana Build | -11 -10 -10 -10 -9 -8 -7 -7 ------- Run | Yrd Mat Min Exi Min Mat Fac Sto Slots Evolved 6 | . . . . . 4 2 . Power . | . . . . . . . . Propulsion 2 | . . . . . 2 . . Utility 4 | . . . . . 2 2 . Weapon . | . . . . . . . . Parts Attached 109 | 6 17 4 . . 29 31 22 Power 14 | 1 3 1 . . 3 4 2 Engine 9 | 1 3 . . . 2 2 1 Core 5 | . . 1 . . 1 2 1 Reactor . | . . . . . . . . Propulsion 38 | 2 7 2 . . 9 12 6 Treads 1 | . . . . . . . 1 Leg 26 | 2 7 2 . . 7 4 4 Wheel . | . . . . . . . . Hover 4 | . . . . . . 3 1 Flight 7 | . . . . . 2 5 . Utility 26 | 1 1 . . . 10 7 7 Device 10 | . . . . . 5 2 3 Storage 5 | 1 . . . . 3 . 1 Processor 9 | . 1 . . . 1 5 2 Hackware . | . . . . . . . . Protection 2 | . . . . . 1 . 1 Artifact . | . . . . . . . . Weapon 31 | 2 6 1 . . 7 8 7 Energy Gun 9 | 1 . . . . 3 4 1 Energy Cannon . | . . . . . . . . Ballistic Gun 10 | 1 6 1 . . 1 1 . Ballistic Cannon 1 | . . . . . 1 . . Launcher 5 | . . . . . 2 1 2 Special Weapon 2 | . . . . . . 1 1 Impact Weapon . | . . . . . . . . Slashing Weapon 4 | . . . . . . 1 3 Piercing Weapon . | . . . . . . . . Special Melee Weapon . | . . . . . . . . Unidentified Prototypes 8 | . 1 . . . 4 2 1 Corrupted Parts 1 | . . . . . . 1 . System Corruption 5 | . . . . . . 5 . Parts Lost 42 | . 2 1 . . 10 22 7 Power 9 | . . . . . 3 5 1 Propulsion 16 | . 1 . . . 4 8 3 Utility 6 | . . . . . . 3 3 Weapon 11 | . 1 1 . . 3 6 . Highest Loss Streak 11 | . 2 1 . . 8 11 4 To Critical Strikes . | . . . . . . . . Average Slot Usage (%) 82 | . 86 98 100 100 84 76 75 Engine 5 | . 14 8 . . 5 4 1 Core 3 | . . 4 14 14 2 1 3 Leg 16 | . 27 27 28 28 22 8 9 Hover 1 | . . . . . . 3 3 Flight 3 | . . . . . 3 7 . Device 7 | . . . . . 14 9 4 Storage 8 | . 14 14 14 14 9 6 2 Processor 19 | . 4 14 14 14 12 24 33 Energy Gun 1 | . . . . . 2 1 3 Ballistic Gun 8 | . 25 28 28 28 7 . . Ballistic Cannon 2 | . . . . . 1 4 . Peak Build Rating 41 | 6 13 14 14 14 32 41 32 Average Rating 24 | 5 10 11 14 14 25 33 27 On Entrance 12 | . 6 13 14 14 14 27 14 Naked Turns . | . . . . . . . . Heaviest Build 29 | 13 16 16 15 15 28 29 25 Greatest Support 43 | 20 20 20 20 20 40 43 40 Greatest Overweight (x) 4 | 1 4 3 . . 3 3 2 Average Overweight (x) . | . . . . . . . . Largest Inventory Capacity 25 | 8 8 8 8 8 25 10 8 Average Capacity 8 | 7 8 8 8 8 8 9 5 Most Carried 10 | 5 8 8 8 8 10 10 8 Average Carried 7 | 2 7 7 7 8 6 8 4 Final Capacity 10 | 8 8 8 8 8 10 5 8 Final Carried 8 | 2 8 8 8 8 8 4 7 Class Distribution -------------------- 80% | Mutant 19% | Scavenger-Mutant Dominant Class ---------------- Mutant | -10/Materials Mutant | -10/Mines Mutant | -10/Exiles Mutant | -9/Mines Scavenger-Mutant | -8/Materials Mutant | -7/Factory Mutant | -7/Storage Resources | -11 -10 -10 -10 -9 -8 -7 -7 ----------- Run | Yrd Mat Min Exi Min Mat Fac Sto Matter Collected 1837 | 192 275 120 . 30 230 748 242 Remotely 61 | . . . . . . . 61 Salvage Created 1975 | . 306 2 . . 383 563 721 Parts 137 | . 24 . . . 18 44 51 Haulers Intercepted 5 | . . . . . . 1 4 Recyclers Shooed 3 | . . . . . . 2 1 Parts Field Recycled . | . . . . . . . . Retrieved Matter . | . . . . . . . . Parts Self-Destructed . | . . . . . . . . Prevented . | . . . . . . . . Kills | -11 -10 -10 -10 -9 -8 -7 -7 ------- Run | Yrd Mat Min Exi Min Mat Fac Sto Combat Hostiles Destroyed 37 | . 7 . . . 10 11 9 Melee 4 | . . . . . . . 4 Guns 20 | . 7 . . . 5 8 . Cannons 3 | . . . . . . 3 . AOE 10 | . . . . . 5 . 5 Classes Destroyed 14 | . 3 . . . 3 6 2 Worker 10 | . . . . . . 8 2 Builder 3 | . 1 . . . . . 2 Hauler 5 | . . . . . . 1 4 Recycler 4 | . 1 . . . . 1 2 Mechanic 1 | . . . . . . . 1 Watcher 4 | . . . . . 2 1 1 Swarmer 4 | . . . . . . . 4 Cutter 2 | . . . . . . 2 . Grunt 21 | . 7 . . . 8 2 4 Brawler 1 | . . . . . 1 . . Sentry 3 | . . . . . 1 1 1 Specialist 1 | . . . . . . 1 . Hunter 3 | . . . . . . 3 . Programmer 2 | . . . . . . 2 . Best Kill Streak 13 | . 5 . . . 7 7 13 Combat Bots Only 5 | . 4 . . . 5 3 4 Max Kills in Single Turn 6 | . 1 . . . 2 5 6 Gunslinging . | . . . . . . . . Exploded 4 | . . . . . 1 . 4 Melee 1 | . . . . . . . 1 Uniques/NPCs Destroyed . | . . . . . . . . Combat | -11 -10 -10 -10 -9 -8 -7 -7 -------- Run | Yrd Mat Min Exi Min Mat Fac Sto Hostile Shots Fired 456 | . 48 . . . 118 169 121 Missed 171 | . 7 . . . 39 75 50 Damage Taken 5044 | . 484 294 . . 1369 2006 891 Core 1092 | . 40 41 . . 310 467 234 Absorbed by Shields . | . . . . . . . . Regen/Repaired (Parts) 133 | . . . . . 133 . . Core Remaining (%) 70 | 100 . . . 67 43 . . Volleys Fired 131 | . 21 6 . . 38 54 12 Largest 2 | . 2 2 . . 2 2 2 Hottest 125 | . 46 46 . . 73 125 90 Shots Fired 203 | . 42 12 . . 65 67 17 Gun 165 | . 42 12 . . 54 48 9 Cannon 18 | . . . . . . 18 . Launcher 20 | . . . . . 11 1 8 Special . | . . . . . . . . Kinetic 122 | . 42 12 . . 42 26 . Thermal 45 | . . . . . . 36 9 Explosive 20 | . . . . . 11 1 8 Electromagnetic 16 | . . . . . 12 4 . Robot Hit Streak 33 | . 15 7 . . 33 19 6 Robot Miss Streak 3 | . 2 2 . . 3 2 3 Penetration Max 1 | . . . . . . 1 . Secondary Targets 2 | . . . . . 1 1 . Max Gunslinging Chain 1 | . . . . . 1 1 . Shots Hit Robots 168 | . 35 8 . . 53 50 22 Core Hits 124 | . 13 5 . . 27 34 45 Critical Kills 1 | . 1 . . . . . . Critical Parts Destroyed . | . . . . . . . . Critical Strikes 6 | . 1 . . . . 4 1 Burn 1 | . . . . . . 1 . Destroy 1 | . 1 . . . . . . Blast 3 | . . . . . . 3 . Sever 1 | . . . . . . . 1 Melee Attacks 16 | . . . . . . . 16 Impact . | . . . . . . . . Slashing 16 | . . . . . . . 16 Piercing . | . . . . . . . . Sneak Attacks 5 | . . . . . . . 5 Combat Hostiles . | . . . . . . . . Follow-up Attacks . | . . . . . . . . Damage Inflicted 6074 | . 536 96 . . 1541 2334 1567 Guns 2056 | . 536 96 . . 663 706 55 Cannons 864 | . . . . . . 864 . Explosions 2565 | . . . . . 878 764 923 Melee 589 | . . . . . . . 589 Ramming . | . . . . . . . . Kinetic 2097 | . 536 96 . . 471 994 . Thermal 1060 | . . . . . . 1005 55 Explosive 2092 | . . . . . 878 291 923 Electromagnetic 236 | . . . . . 192 44 . Impact . | . . . . . . . . Slashing 589 | . . . . . . . 589 Piercing . | . . . . . . . . Highest Corruption 11 | . 1 1 1 1 . 11 11 Average Corruption 4 | . 1 1 1 1 . 5 11 Corruption Purged . | . . . . . . . . Corruption Blocked . | . . . . . . . . Effects 47 | . 1 1 3 1 . 23 18 Message Errors 10 | . . . 2 . . 5 3 Matter Fused 13 | . . . . 1 . 9 3 Heat Flow Errors 2 | . . . . . . . 2 Energy Discharges 5 | . 1 . . . . 1 3 Parts Rejected 1 | . . . . . . 1 . Data Loss (minor) 8 | . . . . . . 4 4 Data Loss (major) 5 | . . 1 1 . . 1 2 Misfires 3 | . . . . . . 2 1 Overload Shots . | . . . . . . . . Overflow Damage 264 | . . . . . 65 167 32 Projectiles 81 | . . . . . . 81 . Explosions 151 | . . . . . 65 86 . Melee 32 | . . . . . . . 32 Knockbacks 6 | . . . . . . 6 . Impact . | . . . . . . . . Kinetic 6 | . . . . . . 6 . Secondary . | . . . . . . . . Self-Inflicted Damage 141 | . . . . . . 24 117 Shots 7 | . . . . . . 1 6 Rammed . | . . . . . . . . Targets Rammed . | . . . . . . . . Kicked . | . . . . . . . . Crushed . | . . . . . . . . Highest Temperature 218 | . 50 . . . . 78 218 Average Temperature 37 | . 17 . . . . 34 81 Received Heat Transfer 1491 | . 267 . . . 648 207 369 Siege Activations . | . . . . . . . . Robots Corrupted . | . . . . . . . . Combat Hostiles . | . . . . . . . . Parts Fried . | . . . . . . . . Impact Corruptions . | . . . . . . . . Robots Melted . | . . . . . . . . Combat Hostiles . | . . . . . . . . Parts Melted . | . . . . . . . . Heat Transferred 1595 | . . . . . . 1373 222 Parts Sabotaged . | . . . . . . . . Parts Stolen . | . . . . . . . . Parts Stripped . | . . . . . . . . Power Chain Reactions . | . . . . . . . . Alert | -11 -10 -10 -10 -9 -8 -7 -7 ------- Run | Yrd Mat Min Exi Min Mat Fac Sto Peak Influence 465 | . 159 119 . . 192 465 276 Initial 186 | . . 61 . . . 18 186 Average 147 | . 76 99 . . 86 215 193 Maximum Alert Level 2 | . . . . . . 2 1 Low Security (%) 68 | 100 100 100 . 100 100 44 31 Level 1 21 | . . . . . . 30 68 Level 2 9 | . . . . . . 24 . Level 3 . | . . . . . . . . Level 4 . | . . . . . . . . Level 5 . | . . . . . . . . High Security . | . . . . . . . . Max Security . | . . . . . . . . Squads Dispatched 7 | . 1 . . . 1 5 . Investigation 2 | . 1 . . . . 1 . Extermination 1 | . . . . . . 1 . Reinforcement 4 | . . . . . 1 3 . Assault . | . . . . . . . . Garrison . | . . . . . . . . Intercept . | . . . . . . . . Searches Triggered . | . . . . . . . . Construction Impeded . | . . . . . . . . Haulers Reinforced . | . . . . . . . . Active Scanning Responses . | . . . . . . . . Cargo Convoy Interrupts 1 | . . . . . . 1 . Stealth | -11 -10 -10 -10 -9 -8 -7 -7 --------- Run | Yrd Mat Min Exi Min Mat Fac Sto Distress Signals 5 | . 1 . . . 3 1 . Communications Jammed . | . . . . . . . . Distress Signals . | . . . . . . . . Times Spotted 90 | . 8 5 . . 20 45 12 Peak Tracking Total 8 | . 4 8 . . 7 8 7 Tactical Retreats 5 | . . 1 . . 1 3 . Traps | -11 -10 -10 -10 -9 -8 -7 -7 ------- Run | Yrd Mat Min Exi Min Mat Fac Sto Traps Triggered 6 | . 5 1 . . . . . Indirectly . | . . . . . . . . Trap Hack Attempts . | . . . . . . . . Triggered . | . . . . . . . . Disarmed 2 | . 2 . . . . . . Reprogrammed . | . . . . . . . . Reused . | . . . . . . . . Traps Extracted . | . . . . . . . . Installed . | . . . . . . . . Triggered . | . . . . . . . . Machines | -11 -10 -10 -10 -9 -8 -7 -7 ---------- Run | Yrd Mat Min Exi Min Mat Fac Sto Machines Disabled 22 | . . . . . 2 19 1 Max in Single Turn 18 | . . . . . 1 18 1 Machines Repaired . | . . . . . . . . Machines Dismantled . | . . . . . . . . Machines Sabotaged . | . . . . . . . . Overloaded Fab Kills . | . . . . . . . . Hacking | -11 -10 -10 -10 -9 -8 -7 -7 --------- Run | Yrd Mat Min Exi Min Mat Fac Sto Machines Accessed 14 | . 2 1 1 . 2 4 4 Terminals 7 | . 2 . . . . 3 2 Fabricators . | . . . . . . . . Repair Stations 3 | . . . . . 1 1 1 Recycling Units 2 | . . . . . 1 . 1 Scanalyzers . | . . . . . . . . Garrison Access . | . . . . . . . . Total Hacks 42 | . 8 1 1 . 8 13 11 Successful 18 | . 4 1 1 . 3 6 3 Failed 24 | . 4 . . . 5 7 8 Catastrophic 1 | . . . . . . . 1 Database Lockouts . | . . . . . . . . Manual 3 | . . . 1 . . 2 . Terminals 23 | . 8 . . . . 11 4 Fabricators . | . . . . . . . . Repair Stations 13 | . . . . . 7 2 4 Recycling Units 4 | . . . . . 1 . 3 Scanalyzers . | . . . . . . . . Garrison Access . | . . . . . . . . Terminal Hacks 12 | . 4 1 1 . . 5 1 Record 4 | . . . . . . 3 1 Open Door 1 | . . 1 . . . . . Emergency Access Points 2 | . 1 . . . . 1 . Locate Traps 1 | . . . . . . 1 . Disarm Traps 1 | . 1 . . . . . . Hauler Manifests 1 | . 1 . . . . . . Zone Layout 1 | . 1 . . . . . . Derelict Proto ID Bank 1 | . . . 1 . . . . Fabricator Hacks . | . . . . . . . . Repair Station Hacks 5 | . . . . . 2 1 2 Scan Component 2 | . . . . . 1 . 1 Repair 1 | . . . . . 1 . . Refit 2 | . . . . . . 1 1 Recycling Unit Hacks 1 | . . . . . 1 . . Retrieve Components 1 | . . . . . 1 . . Scanalyzer . | . . . . . . . . Garrison Access Hacks . | . . . . . . . . Unauthorized Hacks . | . . . . . . . . Terminals . | . . . . . . . . Fabricators . | . . . . . . . . Repair Stations . | . . . . . . . . Recycling Units . | . . . . . . . . Scanalyzers . | . . . . . . . . Garrison Access . | . . . . . . . . Data Cores Recovered . | . . . . . . . . Used . | . . . . . . . . Hacking Detections 10 | . 2 . . . 1 3 4 Full Trace Events 3 | . 2 . . . . 1 . Feedback Events . | . . . . . . . . Feedback Blocked . | . . . . . . . . Robot Schematics Acquired . | . . . . . . . . Robots Built . | . . . . . . . . Authchips . | . . . . . . . . Time . | . . . . . . . . Total Robot Build Rating . | . . . . . . . . Part Schematics Acquired . | . . . . . . . . Parts Built . | . . . . . . . . Authchips . | . . . . . . . . Time . | . . . . . . . . Total Part Build Rating . | . . . . . . . . Parts Repaired 1 | . . . . . 1 . . Time 51 | . . . . . 51 . . Parts Recycled . | . . . . . . . . Recycled Matter . | . . . . . . . . Retrieved Matter . | . . . . . . . . Retrieved Components 9 | . . . . . 9 . . Parts Scanalyzed . | . . . . . . . . Part Schematics Acquired . | . . . . . . . . Parts Damaged . | . . . . . . . . Bothacking | -11 -10 -10 -10 -9 -8 -7 -7 ------------ Run | Yrd Mat Min Exi Min Mat Fac Sto Used RIF Installer . | . . . . . . . . Robots Hacked . | . . . . . . . . Non-combat . | . . . . . . . . Combat . | . . . . . . . . Robot Hacks Applied . | . . . . . . . . Relay Couplers Released . | . . . . . . . . Fabnet Peak Effective % . | . . . . . . . . Robots Rewired . | . . . . . . . . Allies Hacked . | . . . . . . . . Hacks Repelled . | . . . . . . . . Allies | -11 -10 -10 -10 -9 -8 -7 -7 -------- Run | Yrd Mat Min Exi Min Mat Fac Sto Total Allies 1 | . . 1 . . . . . Largest Group 1 | . . 1 . . . . . Highest-Rated Group 31 | . . 31 . . . . . Highest-Rated Ally 31 | . . 31 . . . . . Total Orders 1 | . . . . . 1 . . EXPLORE 1 | . . . . . 1 . . Ally Attacks 28 | . . 28 . . . . . Total Damage 336 | . . 336 . . . . . Kills 3 | . . 3 . . . . . Allies Corrupted . | . . . . . . . . Allies Melted . | . . . . . . . . Intel | -11 -10 -10 -10 -9 -8 -7 -7 ------- Run | Yrd Mat Min Exi Min Mat Fac Sto Robot Analysis Total . | . . . . . . . . Derelict Logs Recovered 1 | . . 1 . . . . . Drone Launches 3 | . . . . . 3 . . Drone Recoveries 3 | . . . . . 3 . . Exploration | -11 -10 -10 -10 -9 -8 -7 -7 ------------- Run | Yrd Mat Min Exi Min Mat Fac Sto Turns Passed 4034 | 198 333 293 296 68 824 1523 499 Spaces Moved 2291 | 60 192 209 246 57 353 825 349 Core 172 | 14 3 7 . . 4 139 5 Treads 83 | . . . . . . . 83 Legs 1658 | 46 189 202 246 57 330 486 102 Wheels . | . . . . . . . . Hover 284 | . . . . . . 125 159 Flight 94 | . . . . . 19 75 . Fastest Speed 29 | 50 120 120 120 120 105 29 50 Average Speed 138 | 109 121 122 120 120 157 160 104 Slowest Speed 260 | 190 250 200 120 120 260 260 190 Overloaded Moves . | . . . . . . . . Propulsion Burnouts . | . . . . . . . . Robots Hopped 2 | . . . . . . 2 . Cave-ins Triggered . | . . . . . . . . Exploration Rate (%) 29 | 6 33 42 60 11 39 18 27 Regions Visited 7 Branch Regions 4 Pre-discovered Areas . | . . . . . . . . Known Exits Taken 1 | . . 1 . . . . . Unknown Exits Taken 6 | 1 1 . 1 1 1 1 . Scrap Searched 1 | . . . . 1 . . . Spaces Dug 85 | . . . . . 8 . 77 Terrain Destroyed 250 | . . . . . 65 45 140 Melee . | . . . . . . . . Projectile 2 | . . . . . . 2 . AOE 248 | . . . . . 65 43 140 Terrain Rammed . | . . . . . . . . Walls Destroyed . | . . . . . . . . Machines Disabled . | . . . . . . . . Actions | -11 -10 -10 -10 -9 -8 -7 -7 --------- Run | Yrd Mat Min Exi Min Mat Fac Sto Total 2934 | 192 248 237 247 56 554 962 438 Wait 269 | 119 . 5 . . 112 18 15 Move 2280 | 59 191 208 245 56 352 820 349 Hop 2 | . . . . . . 2 . Pick Up 87 | 8 14 9 1 . 16 23 16 Fast Attach 18 | . 5 . . . 1 6 6 Attach 64 | 6 6 4 . . 16 20 12 Detach 5 | . . . . . 2 1 2 Swap 27 | . 6 . . . 12 5 4 Drop 35 | . 5 5 1 . 5 13 6 Fire 131 | . 21 6 . . 38 54 12 Melee 16 | . . . . . . . 16 Ram . | . . . . . . . . Kick . | . . . . . . . . Crush . | . . . . . . . . Escape Stasis . | . . . . . . . . Rewire . | . . . . . . . . Trap . | . . . . . . . . Miscellaneous . | . . . . . . . . Route ------- -11/Scrapyard -10/Materials -10/Mines (discovered 3 exits: [*Mat x2] / *Exi) -10/Exiles -9/Mines -8/Materials -7/Factory -7/Storage History --------- Turn | Location | Event 17 | -11/Scrapyard | Discovered new exit (range 14) 199 | -11/Scrapyard | Entered Materials 311 | -10/Materials | Build established: Mutant 394 | -10/Materials | Discovered new exit (range 15) 532 | -10/Materials | Entered Mines 533 | -10/Mines | Assembled infested the area 535 | -10/Mines | Received a Mining Laser from a helpful Derelict 558 | -10/Mines | Met 8R-AWN 650 | -10/Mines | Discovered new exit (range 7) 699 | -10/Mines | Discovered new exit (range 16) 707 | -10/Mines | Met a Derelict who couldn't figure out how to use a Trap Extractor 798 | -10/Mines | Identified exit to Exiles 825 | -10/Mines | Entered Exiles 867 | -10/Exiles | Welcomed by 8R-AWN 895 | -10/Exiles | Met EX-HEX 931 | -10/Exiles | Met EX-BIN 945 | -10/Exiles | Aligned with FarCom system 947 | -10/Exiles | Given EX-Vault access code 977 | -10/Exiles | Opened EX-Vault 1000 | -10/Exiles | Found Supersonic Drone Bay 1026 | -10/Exiles | Warned to stay clear of 0b10 Research branches 1066 | -10/Exiles | Met EX-DEC 1107 | -10/Exiles | Discovered new exit (range 14) 1121 | -10/Exiles | Left Exiles lab with Supersonic Drone Bay 1121 | -10/Exiles | Entered Mines 1171 | -9/Mines | Discovered new exit (range 12) 1189 | -9/Mines | Entered Materials 1189 | -8/Materials | Evolved 4 slots: Propulsion x2, Utility x2 1291 | -8/Materials | Repaired Imp. Assault Rifle 1473 | -8/Materials | Build established: Scavenger-Mutant 1694 | -8/Materials | Core integrity fell below 50% 1719 | -8/Materials | Lost 8 parts (2p4n2w) 1954 | -8/Materials | Build established: Mutant 1987 | -8/Materials | Discovered new exit (range 10) 2013 | -8/Materials | Entered Factory 2013 | -7/Factory | Evolved 2 slots: Utility x2 3085 | -7/Factory | Cargo convoy interrupted 3133 | -7/Factory | Lost 6 parts (2p3n1w) 3251 | -7/Factory | Discovered new exit (range 11) 3467 | -7/Factory | System corruption reached 10% 3490 | -7/Factory | Lost 11 parts (1p4n2u4w) 3526 | -7/Factory | Core integrity fell below 50% 3536 | -7/Factory | Entered Storage 3826 | -7/Storage | Core integrity fell below 20% 3862 | -7/Storage | Lost 4 parts (1p1n2u) 3975 | -7/Storage | Found Prototype Launcher 3978 | -7/Storage | Identified Rocket Array 3981 | -7/Storage | Found Rocket Array 3990 | -7/Storage | Found Rocket Array 4035 | -7/Storage | Destroyed by Y-54 Guardian with Flak Gun Last Messages --------------- results: 04009_ Terminal x1 04009_ S-27 Virus destroyed. 04009_ A-02 Transporter destroyed. 04017_ The unstable cave ceiling collapses. 04017_ K-01 Serf collects debris. 04022_ U-05 Engineer lays Concrete. 04024_ K-01 Serf destroyed. 04025_ U-05 Engineer lays Concrete. 04027_ Acquired 9 matter. 04027_ Acquired 12 matter. 04027_ U-05 Engineer lays Concrete. 04029_ U-05 Engineer builds a Wall. 04030_ U-05 Engineer destroyed. [Achievement: Remodeling] 04031_ The unstable cave ceiling collapses. 04033_ Aluminum Leg destroyed. 04035_ Transfer Shaft disabled. 04035_ W-25 Informer destroyed. 04035_ G-47 Trooper destroyed. Map ----- +----------------------------------------------------+ | ????????????""??????????????????????"?"??# R" | | ????????????"""?????????????????????"Y"??# """ | | ?????????????R"?????????????????????"""??# """ | | ????????????"""??????????????????????????# """ | | ?????????????????????????????????????????# """ | | ?????????????????????????????????????????# | | ?????????????????????????? ??????????????### ##### | | ???????????????????????? ??????????????##???#" | | ????????????????????? ????????########???#" | | ????????????????????"" ????????# #???#" | | ????????????????? ??"" ?????#+## #???## | | ????????????????? ?T" ??## # #????? | | ?????????????????# "" + #????? | | ????????????Y???[ "" Y # # #????? | | ?????????????? |#?? ?????? | | ?????????????? !#####+######## | | ????????????? * == %/ ! | | ????????????? #+#####+######## | | ???????????? % [= ## T#?????? | | ???????????? ] = ##" "##?????? | | ?????????????# ][ ##!!!#??????? | | ??????????????? Y= Y """ ##!!!#??????? | | ?????????????##+## """ ######??????? | | ?????????????? ### """ #???????????? | | ??????????????????" #?########?????????### | | ??????????????????" "" @ #??????????????????## | | ??????????????????" # """ #?????????????????#T | | ????????????????????# """ #?????????????????##" | | ????????????????????## # #??????????????????#! | | ?????????????????????#### ###??????????????????#! | | ????????????????????????# #????????????????????#!! | | ????????????????????????###????????????????????### | | ?????????????????????????????????????????????????? | | ?????????????????????????????????????????????????? | | ?????????????????????????????????????????????????? | | ?????????????????????????????????????????????????? | | ?????????????????????????????????????????????????? | | ?????????????????????????????????????????????????? | | | | | | | | | | | | | | | | | | | | | | | | | +----------------------------------------------------+ Best States ------------- Heat Dissipation 34 Energy Generation 15 Energy Capacity 250 Matter Stores 300 Matter Capacity 300 Sight Range 16 Terrain Scan Density 10 Base Temperature (-) 100 Armor Coverage 150 Weapon Cycling 15 Evasion (%) 64 Targeting Accuracy 18 Launcher Accuracy 20 Core Analysis 9 Armor Integrity Analysis 30 Recoil Reduction 1 Item Schematics ----------------- None Robot Schematics ------------------ None Fabricated ------------ Nothing Alien Tech Used ----------------- None Achievements -------------- It Was An Accident, I Swear Remodeling Challenges ------------ None Game ------ Seed DeepRemoteSaw Manual? 0 Play Time 00:59:55 Cumulative 9.4 hours Start 2024.11.02 @ 23:37:56 End 2024.11.03 @ 00:41:00 Sessions 1 Manual Loads 0 Difficulty Rogue Special Mode None Game No. 16 Rogue 16 Adventurer 0 Explorer 0 Win Type - Total 0 Types 0/0/0/0/0/0/0/0/0 Lore% 8 Gallery% 15 Achievement% 12 Wizard Run 0 Options --------- Layout 1 ASCII 0 Keyboard 0 Movement Arrows Keybinds 0 Fullscreen 2 Font 24/Smallcaps Map View 50x35 Zoom Use 0% Tactical HUD 1 Map Filters NONE Filters NONE Steam 1 RUN: a8d5e43d-44e2-40a1-bff9-f98f2b5c7621